Cogmind - Beta 13 @@@ ROGUE MODE // 2024.04.06 @ 22:55:08 Player: chexo4 Result: Destroyed by S-10 Pest with Light Assault Rifle Performance ------------- Evolutions (1) 500 Regions Visited (2) 400 Robots Destroyed (12) 60 Value Destroyed (157) 157 Prototype IDs (0) 0 Alien Tech Used (0) 0 Bonus (0) 0 TOTAL SCORE: 1117 Bonus ------- None Cogmind --------- Core Integrity 0/400 Matter 296/300 Energy 96/100 System Corruption 0% Temperature Cool (9) Movement Core (50) Location -9/Materials Parts ------- > --- POWER (1) -------- (None) > --- PROPULSION (4) --- (None) > --- UTILITY (2) ------ (None) > --- WEAPON (2) ------- (None) > --- INVENTORY (5) ---- Ion Engine Improved Ion Engine Improved Targeting Computer Particle Gun Light Assault Rifle Peak State ------------ > --- POWER ------------ Light Nuclear Core > --- PROPULSION ------- Wheel Wheel > --- UTILITY ---------- Large Storage Unit Improved Terrain Scanner > --- WEAPON ----------- Light EM Pulse Cannon Light Assault Rifle > --- INVENTORY -------- Ion Engine Light Ion Engine Improved Ion Engine Small Storage Unit Improved Targeting Computer Particle Gun Light Assault Rifle Mining Laser [Rating: 13] Favorites ----------- Power Light Nuclear Core Engine Light Ion Engine Power Core Light Nuclear Core Propulsion Wheel Wheel Wheel Utility Improved Terrain Scanner Device Improved Terrain Scanner Storage Large Storage Unit Weapon Light Assault Rifle Energy Gun EM Pulse Gun Energy Cannon Light EM Pulse Cannon Ballistic Gun Light Assault Rifle Special Weapon Mining Laser Build | -11 -10 -9 ------- Run | Yrd Mat Mat Slots Evolved 2 | . . 2 Power . | . . . Propulsion 2 | . . 2 Utility . | . . . Weapon . | . . . Parts Attached 21 | 6 9 6 Power 2 | 1 1 . Engine 1 | 1 . . Core 1 | . 1 . Reactor . | . . . Propulsion 2 | 2 . . Treads . | . . . Leg . | . . . Wheel 2 | 2 . . Hover . | . . . Flight . | . . . Utility 3 | 1 2 . Device 1 | . 1 . Storage 2 | 1 1 . Processor . | . . . Hackware . | . . . Protection . | . . . Artifact . | . . . Weapon 14 | 2 6 6 Energy Gun 3 | 1 2 . Energy Cannon 2 | . . 2 Ballistic Gun 4 | 1 2 1 Ballistic Cannon . | . . . Launcher . | . . . Special Weapon 5 | . 2 3 Impact Weapon . | . . . Slashing Weapon . | . . . Piercing Weapon . | . . . Special Melee Weapon . | . . . Unidentified Prototypes . | . . . Parts Lost 5 | . . 5 Power 1 | . . 1 Propulsion 2 | . . 2 Utility 1 | . . 1 Weapon 1 | . . 1 Highest Loss Streak 5 | . . 5 To Critical Strikes . | . . . Average Slot Usage (%) 85 | . 100 74 Engine 5 | . 12 . Core 6 | . 1 10 Wheel 23 | . 28 20 Device 12 | . 14 10 Storage 12 | . 14 11 Energy Gun 3 | . 7 . Energy Cannon 5 | . . 9 Ballistic Gun 12 | . 14 10 Special Weapon 3 | . 7 . Naked Turns 3 | . . 3 Heaviest Build 31 | 11 30 31 Greatest Support 20 | 20 20 20 Greatest Overweight (x) 6 | . 1 6 Average Overweight (x) . | . . 1 Largest Inventory Capacity 15 | 8 15 15 Average Capacity 13 | 7 14 14 Most Carried 10 | 4 6 10 Average Carried 5 | 1 4 6 Final Capacity 15 | 8 15 5 Final Carried 6 | 4 6 5 Class Distribution -------------------- 100% | Mutant Dominant Class ---------------- Mutant | -10/Materials Mutant | -9/Materials Resources | -11 -10 -9 ----------- Run | Yrd Mat Mat Matter Collected 390 | 272 53 65 Remotely . | . . . Salvage Created 454 | 185 102 167 Parts 23 | 10 5 8 Haulers Intercepted 1 | . . 1 Recyclers Shooed . | . . . Parts Field Recycled . | . . . Retrieved Matter . | . . . Parts Self-Destructed . | . . . Prevented . | . . . Kills | -11 -10 -9 ------- Run | Yrd Mat Mat Combat Hostiles Destroyed 2 | . 2 . Guns 2 | . 2 . Classes Destroyed 7 | 2 2 3 Builder 1 | . 1 . Tunneler 4 | 4 . . Hauler 1 | . . 1 Recycler 2 | 1 . 1 Mechanic 1 | . . 1 Watcher 1 | . . 1 Grunt 2 | . 2 . Best Kill Streak 5 | 5 2 3 Combat Bots Only 2 | . 2 . Max Kills in Single Turn 1 | 1 1 1 Gunslinging . | . . . Exploded . | . . . Melee . | . . . Uniques/NPCs Destroyed . | . . . Combat | -11 -10 -9 -------- Run | Yrd Mat Mat Hostile Shots Fired 105 | . 11 94 Missed 24 | . 2 22 Damage Taken 967 | . 130 837 Core 431 | . 29 402 Absorbed by Shields . | . . . Regen/Repaired (Parts) 63 | . . 63 Core Remaining (%) 94 | 100 88 . Volleys Fired 68 | 13 34 21 Largest 2 | 2 2 2 Hottest 120 | 60 120 100 Shots Fired 102 | 26 43 33 Gun 58 | 26 17 15 Cannon 12 | . . 12 Launcher . | . . . Special 32 | . 26 6 Kinetic 37 | 13 9 15 Thermal 32 | . 26 6 Explosive . | . . . Electromagnetic 33 | 13 8 12 Robot Hit Streak 7 | 5 7 2 Robot Miss Streak 2 | 2 1 2 Penetration Max . | . . . Secondary Targets . | . . . Shots Hit Robots 42 | 16 13 13 Core Hits 20 | 6 6 8 Critical Kills . | . . . Critical Parts Destroyed . | . . . Critical Strikes . | . . . Melee Attacks . | . . . Impact . | . . . Slashing . | . . . Piercing . | . . . Sneak Attacks . | . . . Combat Hostiles . | . . . Follow-up Attacks . | . . . Damage Inflicted 626 | 183 171 272 Guns 402 | 183 147 72 Cannons 189 | . . 189 Explosions . | . . . Melee . | . . . Ramming 11 | . . 11 Kinetic 186 | 62 52 72 Thermal 24 | . 24 . Explosive . | . . . Electromagnetic 405 | 121 95 189 Impact . | . . . Slashing . | . . . Piercing . | . . . Highest Corruption . | . . . Average Corruption . | . . . Corruption Purged . | . . . Corruption Blocked . | . . . Overload Shots . | . . . Overflow Damage 36 | . . 36 Projectiles 36 | . . 36 Explosions . | . . . Melee . | . . . Knockbacks . | . . . Impact . | . . . Kinetic . | . . . Secondary . | . . . Self-Inflicted Damage 5 | . . 5 Shots . | . . . Rammed 2 | . . 2 Targets Rammed 2 | . . 2 Kicked . | . . . Crushed . | . . . Highest Temperature 140 | 60 140 60 Average Temperature 53 | 28 73 22 Received Heat Transfer 357 | . 78 279 Siege Activations . | . . . Robots Corrupted . | . . . Combat Hostiles . | . . . Parts Fried . | . . . Impact Corruptions . | . . . Robots Melted . | . . . Combat Hostiles . | . . . Parts Melted . | . . . Heat Transferred 50 | . 50 . Parts Sabotaged . | . . . Parts Stolen . | . . . Parts Stripped . | . . . Power Chain Reactions . | . . . Alert | -11 -10 -9 ------- Run | Yrd Mat Mat Peak Influence 134 | 25 101 134 Initial 42 | . 16 42 Average 54 | 6 47 72 Maximum Alert Level . | . . . Low Security (%) 100 | 100 100 100 Level 1 . | . . . Level 2 . | . . . Level 3 . | . . . Level 4 . | . . . Level 5 . | . . . High Security . | . . . Max Security . | . . . Squads Dispatched 1 | . . 1 Investigation 1 | . . 1 Extermination . | . . . Reinforcement . | . . . Assault . | . . . Garrison . | . . . Intercept . | . . . Searches Triggered . | . . . Construction Impeded . | . . . Haulers Reinforced . | . . . Active Scanning Responses . | . . . Cargo Convoy Interrupts . | . . . Stealth | -11 -10 -9 --------- Run | Yrd Mat Mat Distress Signals 1 | . 1 . Communications Jammed . | . . . Distress Signals . | . . . Times Spotted 21 | . 4 17 Peak Tracking Total 15 | . 3 15 Tactical Retreats . | . . . Traps | -11 -10 -9 ------- Run | Yrd Mat Mat Traps Triggered . | . . . Indirectly . | . . . Trap Hack Attempts . | . . . Triggered . | . . . Disarmed . | . . . Reprogrammed . | . . . Reused . | . . . Traps Extracted . | . . . Installed . | . . . Triggered . | . . . Machines | -11 -10 -9 ---------- Run | Yrd Mat Mat Machines Disabled . | . . . Max in Single Turn . | . . . Machines Repaired . | . . . Machines Dismantled . | . . . Machines Sabotaged . | . . . Overloaded Fab Kills . | . . . Hacking | -11 -10 -9 --------- Run | Yrd Mat Mat Machines Accessed 5 | . 2 3 Terminals 3 | . 2 1 Fabricators . | . . . Repair Stations 1 | . . 1 Recycling Units 1 | . . 1 Scanalyzers . | . . . Garrison Access . | . . . Total Hacks 17 | . 2 15 Successful 15 | . 2 13 Failed 2 | . . 2 Catastrophic 1 | . . 1 Database Lockouts . | . . . Manual 2 | . 2 . Terminals 5 | . 2 3 Fabricators . | . . . Repair Stations 4 | . . 4 Recycling Units 8 | . . 8 Scanalyzers . | . . . Garrison Access . | . . . Terminal Hacks 3 | . 2 1 Branch Access Points 1 | . . 1 Zone Layout 2 | . 2 . Fabricator Hacks . | . . . Repair Station Hacks 4 | . . 4 Scan Component 2 | . . 2 Repair 2 | . . 2 Recycling Unit Hacks 8 | . . 8 Recycle Component 3 | . . 3 Process 1 | . . 1 Report Inventory 2 | . . 2 Retrieve Matter 1 | . . 1 Retrieve Components 1 | . . 1 Scanalyzer . | . . . Garrison Access Hacks . | . . . Unauthorized Hacks . | . . . Terminals . | . . . Fabricators . | . . . Repair Stations . | . . . Recycling Units . | . . . Scanalyzers . | . . . Garrison Access . | . . . Data Cores Recovered . | . . . Used . | . . . Hacking Detections 3 | . 1 2 Full Trace Events 1 | . . 1 Feedback Events . | . . . Feedback Blocked . | . . . Robot Schematics Acquired . | . . . Robots Built . | . . . Authchips . | . . . Time . | . . . Total Robot Build Rating . | . . . Part Schematics Acquired . | . . . Parts Built . | . . . Authchips . | . . . Time . | . . . Total Part Build Rating . | . . . Parts Repaired 2 | . . 2 Time 52 | . . 52 Parts Recycled 3 | . . 3 Recycled Matter 46 | . . 46 Retrieved Matter 46 | . . 46 Retrieved Components 2 | . . 2 Parts Scanalyzed . | . . . Part Schematics Acquired . | . . . Parts Damaged . | . . . Bothacking | -11 -10 -9 ------------ Run | Yrd Mat Mat Used RIF Installer . | . . . Robots Hacked . | . . . Non-combat . | . . . Combat . | . . . Robot Hacks Applied . | . . . Relay Couplers Released . | . . . Fabnet Peak Effective % . | . . . Robots Rewired . | . . . Allies Hacked . | . . . Hacks Repelled . | . . . Allies | -11 -10 -9 -------- Run | Yrd Mat Mat Total Allies . | . . . Largest Group . | . . . Highest-Rated Group . | . . . Highest-Rated Ally . | . . . Total Orders . | . . . Ally Attacks . | . . . Total Damage . | . . . Kills . | . . . Allies Corrupted . | . . . Allies Melted . | . . . Intel | -11 -10 -9 ------- Run | Yrd Mat Mat Robot Analysis Total . | . . . Derelict Logs Recovered . | . . . Drone Launches . | . . . Drone Recoveries . | . . . Exploration | -11 -10 -9 ------------- Run | Yrd Mat Mat Turns Passed 803 | 109 303 391 Spaces Moved 514 | 77 171 266 Core 21 | 16 . 5 Treads . | . . . Legs . | . . . Wheels 493 | 61 171 261 Hover . | . . . Flight . | . . . Fastest Speed 50 | 50 80 50 Average Speed 91 | 73 93 95 Slowest Speed 350 | 80 95 350 Overloaded Moves . | . . . Propulsion Burnouts . | . . . Robots Hopped . | . . . Cave-ins Triggered . | . . . Exploration Rate (%) 17 | 4 26 21 Regions Visited 2 Branch Regions . Pre-discovered Areas . | . . . Known Exits Taken . | . . . Unknown Exits Taken 2 | 1 1 . Scrap Searched . | . . . Spaces Dug 14 | . 8 6 Terrain Destroyed 16 | . 10 6 Melee . | . . . Projectile 16 | . 10 6 AOE . | . . . Terrain Rammed . | . . . Walls Destroyed . | . . . Machines Disabled . | . . . Actions | -11 -10 -9 --------- Run | Yrd Mat Mat Total 680 | 105 217 358 Wait 52 | . . 52 Move 512 | 76 170 266 Hop . | . . . Pick Up 21 | 10 3 8 Fast Attach . | . . . Attach 8 | 6 2 . Detach 1 | . 1 . Swap 13 | . 7 6 Drop 3 | . . 3 Fire 68 | 13 34 21 Melee . | . . . Ram 2 | . . 2 Kick . | . . . Crush . | . . . Escape Stasis . | . . . Rewire . | . . . Trap . | . . . Miscellaneous . | . . . Route ------- -11/Scrapyard -10/Materials -9/Materials (discovered 1 exit: Min) History --------- Turn | Location | Event 31 | -11/Scrapyard | Discovered new exit (range 15) 110 | -11/Scrapyard | Entered Materials 313 | -10/Materials | Build established: Mutant 400 | -10/Materials | Discovered new exit (range 10) 413 | -10/Materials | Entered another Materials area 413 | -9/Materials | Evolved 2 slots: Propulsion x2 516 | -9/Materials | Repaired Lgt. Ion Engine 543 | -9/Materials | Repaired Lgt. Assault Rifle 690 | -9/Materials | Identified exit to Mines 798 | -9/Materials | Core integrity fell below 50% 803 | -9/Materials | Core integrity fell below 20% 804 | -9/Materials | Destroyed by S-10 Pest with Light Assault Rifle Last Messages --------------- Map updated. ALERT: Suspicious activity at Terminal M003. Dispatching Investigation squad. K-01 Serf cleans the Terminal. C-30 ARC bursts open, deploying its payload. G-47 Trooper unfolds itself. G-34 Mercenary unfolds itself. K-01 Serf collects debris. K-01 Serf cleans the Terminal. Slammed into A-02 Transporter. K-01 Serf collects debris. Wheel destroyed. Lgt. Nuclear Core destroyed. Mining Laser destroyed. Wheel destroyed. Imp. Terrain Scanner destroyed. Dropped Lgt. Assault Rifle. Critical hit (Burn: +37). Dropped Lrg. Storage Unit. Slammed into S-10 Pest. Map ----- +----------------------------------------------------+ | ??????????????????????????????????????????? | | ??????????????????????????????????????????? | | ??????????????????????????????????????????? | | ??????????????????????????????????????????? | | ??????????????????????????????????????????? | | ???????????>??????????????????????????????? | | ??????????????????????????????????????????? | | ??????????????????????????????????????????? | | ??????????????????????????????????????????? | | ??????????????????????????????????????????? | | ??????????????????????????????????????????? | | ???????????? ?????????????????????????????? | | ???????????????????? ?? ????????????????? | | ??????????????????## ##?????????????????? | | ?????????????????## #?? ??????????????? | | ?????????????????? ! #????????????"????? | | ?????????????????? +?????????????????? | | ????????? ????????? #?????????? ??????? | | ???????#? ? ?????? #?????????????????? | | ??????????#+######## #????"?????????????? | | ??????????# Y ] # #??????????????????? | | ??????????# """ [!Y #??????????????????? | | ??????????# w"""!! # #??????????T ??????? | | ??????????# """ s # #?????#????" ??????? | | ??????????# s # #?????????? ?????? | | ??????????# """gg@# ############+###???? | | ??????????# """g s# ####? | | ??????#???# """ Y !## | | ??????????# # !# | | ??????????########## ###+######## !# | | ???????????????????# #????????#?# !# | | ?????????????? ????# #??? ??????# !# | | ??????????#????????# #?????"???## !## | | ?????????????????? + +?????????## ####? | | ???????????????????# ### ????????# #??? | | ???????????????????# #?? "?? ????# #??? | | ???????????#???????#%#???"???????# T #??? | | ???????????????#??## ????""??????# #??? | | ??????????????#????# ???????????## #??? | | ???????????????????# ???????#?########"#### | | ???????????????????# #?#####??# | | ??#????????????????# ###"T"####%######+#### | | ???????????????????#! ##??? ??? | | ???????????????????# "#???%] ??? | | ?????????#???????#?# T#?? ]] ?? | | ?#?????###########?# "#?? ]] ?? | | ???????# ### """ """ ##?# ? | | ???????# ### """ """ #??# | ? | | ???#???# # """ """ #??######## | | ????#??# ! # #?????????? | +----------------------------------------------------+ Best States ------------- Heat Dissipation 28 Energy Generation 14 Energy Capacity 160 Matter Stores 300 Matter Capacity 300 Sight Range 16 Terrain Scan Range 16 Terrain Scan Density 10 Evasion (%) 50 Item Schematics ----------------- None Robot Schematics ------------------ None Fabricated ------------ Nothing Alien Tech Used ----------------- None Achievements -------------- None Challenges ------------ None Game ------ Seed BarrageArmoredWheel Manual? 0 Play Time 00:12:42 Cumulative 10.9 hours Start 2024.04.06 @ 21:04:51 End 2024.04.06 @ 22:55:08 Sessions 2 Manual Loads 0 Difficulty Rogue Special Mode None Game No. 25 Rogue 25 Adventurer 0 Explorer 0 Win Type - Total 0 Types 0/0/0/0/0/0/0/0/0 Lore% 15 Gallery% 21 Achievement% 17 Wizard Run 0 Options --------- Layout 1 ASCII 0 Keyboard 0 Movement Arrows Keybinds 0 Fullscreen 1 Font 24/Smallcaps Map View 50x35 Zoom Use 0% Tactical HUD 0 Map Filters NONE Filters NONE Steam 1 RUN: 9e7663e1-ac4f-432d-9958-baa6b227f8d2